bitfinex/quotes_ETHUSD_20250404
["timestamp","ask_amount","ask_price","bid_price","bid_amount"]
[1743771408726,7.086,1785.1,1784.8,5.60281]
[1743771408727,7.086,1785.1,1784.8,5.60277]
[1743771409040,7.086,1785.1,1784.8,11.20553]
[1743771409424,7.086,1785.1,1784.8,5.60276]
[1743771409626,12.68635,1785.3,1784.9,5.60234]
[1743771410047,12.68635,1785.3,1785.0,5.60223]
[1743771410211,18.28783,1785.3,1784.9,5.60234]
[1743771410543,5.60161,1785.2,1784.9,5.60234]
[1743771410746,5.60074,1785.5,1785.1,5.6019]
[1743771410917,5.60074,1785.5,1785.2,5.60155]
[1743771411249,0.05,1785.9,1785.8,7.11903]
[1743771411744,0.17699979,1785.9,1785.8,7.11903]
[1743771412046,0.17911119,1785.9,1785.8,7.11903]
[1743771412215,0.17911119,1785.9,1785.8,8.390924]
[1743771413646,0.17911119,1785.9,1785.6,7.15512]
[1743771413847,5.77863119,1785.9,1785.5,5.60061]
[1743771414144,11.37825119,1785.9,1785.5,5.60061]
[1743771414343,11.37824119,1785.9,1785.5,5.60061]
[1743771414515,5.59973,1785.8,1785.5,5.60061]
[1743771414722,0.17911119,1785.9,1785.3,1.5548]
[1743771414948,0.11381702,1785.7,1785.4,5.60078]
[1743771415145,5.7140018,1785.8,1785.4,5.60078]
[1743771415357,0.11338218,1785.6,1785.4,11.20166]
[1743771415539,11.19966,1785.8,1785.4,6.876426]
[1743771415846,11.19969,1785.8,1785.4,5.60078]
[1743771416047,5.71389702,1785.7,1785.3,12.75732]
[1743771416250,0.11381702,1785.7,1785.4,5.60067]
[1743771416450,0.11381702,1785.7,1785.6,5.60035]
[1743771416948,0.05,1785.9,1785.7,5.59998]
[1743771417153,0.05,1785.9,1785.8,7.15453]
[1743771417525,0.05,1785.9,1785.8,5.59973]
[1743771417933,0.05,1785.9,1785.7,5.59998]
[1743771418146,5.59989,1785.8,1785.4,6.316417]
[1743771418351,11.1999,1785.8,1785.4,5.60083]
[1743771418648,5.59981,1785.8,1785.4,5.60079]
[1743771418834,14.33492,1785.9,1785.5,5.60041]
[1743771419040,19.93457,1785.9,1785.5,5.60041]
[1743771419352,5.60014,1785.7,1785.4,5.60086]
[1743771419561,5.60014,1785.7,1785.3,12.70414]
[1743771419722,5.6004,1785.6,1785.3,8.373384]
[1743771420157,5.59977,1785.8,1785.5,5.60056]
[1743771420356,5.60005,1785.7,1785.3,7.10298]
[1743771420560,0.05,1785.9,1785.8,7.15453]
[1743771420859,0.05,1785.9,1785.8,8.979973]
[1743771421056,0.05,1785.9,1785.8,7.15453]
[1743771421556,0.05,1785.9,1785.8,11.46842302]
[1743771421724,0.05,1785.9,1785.8,11.41243454]
[1743771422335,0.17541795,1785.9,1785.8,11.41243454]
[1743771422533,0.05,1785.9,1785.8,7.15453]
[1743771422732,0.05,1785.9,1785.8,8.429973]
[1743771422948,0.17541795,1785.9,1785.8,8.429973]
[1743771424068,0.20677243,1785.9,1785.8,8.429973]
[1743771424271,0.20677243,1785.9,1785.8,8.86021277]
[1743771424566,2.43e-06,1785.9,1785.8,16.17410572]
[1743771424725,8.6201,1786.7,1786.4,5.59785]
[1743771425163,1.5481,1786.7,1786.4,5.59785]
[1743771425361,7.14517,1786.7,1786.3,5.59803]
[1743771425539,5.59732,1786.6,1786.3,5.59803]
[1743771425739,5.59733,1786.6,1786.3,5.59803]
[1743771425988,5.59733,1786.6,1786.2,12.69899]
[1743771426126,5.59804,1786.4,1786.0,5.59893]
[1743771426325,1.5469,1786.5,1786.1,5.59863]
[1743771426551,12.74235,1786.5,1786.1,5.59863]
[1743771426861,1.5469,1786.5,1786.2,5.59836]
[1743771427176,5.59816,1786.3,1786.0,5.59903]
[1743771428223,5.59997,1785.8,1785.4,5.60077]
[1743771428430,1.6263,1785.7,1785.3,5.60116]
[1743771428629,5.60045,1785.6,1785.2,5.60154]
[1743771428825,11.201,1785.6,1785.2,5.60154]
[1743771429034,11.201,1785.6,1785.2,6.877361]
[1743771429469,5.60069,1785.5,1785.2,6.877361]
[1743771429840,11.20101,1785.6,1785.2,6.877321]
[1743771430146,1.6263,1785.7,1785.0,5.60218]
[1743771430147,5.60112,1785.4,1785.0,5.60218]
[1743771430351,5.60112,1785.4,1785.0,5.60206]
[1743771430566,5.60112,1785.4,1785.1,5.6019]
[1743771430940,5.60112,1785.4,1785.0,5.60206]
[1743771431272,9.30733454,1785.9,1785.5,5.60065]
[1743771431273,7.25684,1785.9,1785.5,5.60065]
[1743771431451,12.85651,1785.9,1785.5,5.60065]
[1743771431762,12.85651,1785.9,1785.5,1.17616335]
[1743771431763,1.6573,1785.9,1785.5,1.17616335]
[1743771431976,1.5049,1786.1,1785.9,5.59931]
[1743771432129,7.10277,1786.4,1786.0,5.59891]
[1743771432533,7.10277,1786.4,1785.8,5.59956]
[1743771432534,1.5049,1786.4,1785.8,5.59956]
[1743771432735,5.59882,1786.1,1785.7,11.19993]
[1743771433235,5.59848,1786.2,1785.7,5.60004]
[1743771433435,11.19713,1786.2,1785.8,5.59957]
[1743771433634,5.59924,1786.0,1785.7,0.710734]
[1743771433862,5.59924,1786.0,1785.7,6.310734]
[1743771434071,7.14044,1786.0,1785.7,5.6]
[1743771434374,7.13972,1786.2,1785.8,5.59956]
[1743771434578,5.59882,1786.1,1785.8,5.59956]
[1743771434871,7.13972,1786.2,1785.8,5.59956]
[1743771435187,5.5992,1786.0,1785.6,7.10762]
[1743771435482,5.5992,1786.0,1785.1,12.56241803]
[1743771435483,5.59974,1785.8,1785.5,5.60057]
[1743771436058,7.13857,1785.9,1785.5,5.60051]
[1743771436370,7.13857,1785.9,1785.6,5.60025]
[1743771436573,7.13857,1785.9,1785.5,5.60051]
[1743771436574,1.5391,1785.9,1785.5,5.60061]
[1743771436743,7.13872,1785.9,1785.5,5.60057]
[1743771436937,7.13872,1785.9,1785.5,6.160627]
[1743771437268,7.13872,1785.9,1785.6,5.60033]
[1743771437472,1.5391,1785.9,1785.7,5.60002]
[1743771437772,7.13861,1785.9,1785.5,6.160667]
[1743771437940,5.59973,1785.8,1785.5,6.160667]
[1743771438273,7.13861,1785.9,1785.6,5.60035]
[1743771438447,12.73821,1785.9,1785.5,6.160577]
[1743771438647,5.60113,1785.4,1785.1,7.11859]
[1743771438970,11.20296,1785.3,1784.9,7.84640859]
[1743771439271,5.60147,1785.3,1784.9,7.84639859]
[1743771439570,11.20295,1785.3,1784.9,7.84639859]
[1743771439730,5.60147,1785.3,1785.0,0.78463986]
[1743771439930,5.60147,1785.3,1785.0,6.38683986]
[1743771440143,5.60103,1785.4,1785.0,6.38674986]
[1743771440354,7.2097,1785.5,1785.1,11.20363]
[1743771440668,7.062,1785.6,1785.3,5.60125]
[1743771440857,12.66238,1785.6,1785.4,0.560125]
[1743771441061,7.062,1785.6,1785.4,0.560125]
[1743771441258,12.66236,1785.6,1785.3,5.60115]
[1743771441438,7.062,1785.6,1785.4,11.20162]
[1743771441638,7.23943,1785.8,1785.4,5.60081]
[1743771441878,7.23943,1785.8,1785.4,11.20167]
[1743771442174,12.66014,1786.0,1785.1,7.14031]
[1743771442175,14.25981,1786.0,1785.5,1.5476]
[1743771442341,19.85909,1786.0,1785.6,5.60017]
[1743771442541,5.59952,1785.9,1785.7,0.560017]
[1743771442741,5.59952,1785.9,1785.5,12.74872]
[1743771443259,11.19912,1785.9,1785.5,12.74872]
[1743771443570,5.59992,1785.8,1785.4,5.60092]
[1743771443775,5.60006,1785.7,1785.3,5.60116]
[1743771443964,7.17685,1785.6,1785.2,5.60154]
[1743771444159,12.7775,1785.6,1785.3,6.161444]
[1743771444359,12.7775,1785.6,1785.0,8.27282581]
[1743771444360,5.60142,1785.3,1785.0,0.78463986]
[1743771444766,11.20291,1785.3,1785.0,0.78463986]
[1743771444979,5.60142,1785.3,1785.0,6.38686986]
[1743771445685,11.20299,1785.3,1785.0,0.78463986]
[1743771445837,5.60171,1785.2,1785.0,0.78463986]
[1743771446177,5.6007,1785.5,1784.7,7.15789]
[1743771446178,5.60228,1785.0,1784.7,7.15789]
[1743771446478,5.60208,1785.1,1784.7,7.15785]
[1743771446665,5.60208,1785.1,1784.7,12.76085]
[1743771446863,11.20419,1785.1,1784.7,12.76085]
[1743771447069,5.60225,1785.0,1784.8,1.276085]
[1743771447476,5.60208,1785.1,1784.8,1.276085]
[1743771447669,5.60136,1785.3,1784.9,5.60246]
[1743771447876,5.60171,1785.2,1784.9,5.60246]
[1743771448052,11.20356,1785.2,1784.8,6.878795]
[1743771448252,5.60194,1785.1,1784.9,0.6878795]
[1743771448494,11.20411,1785.1,1784.9,0.6878795]
[1743771448687,11.20411,1785.1,1784.8,1.276085]
[1743771448688,11.20407,1785.1,1784.8,1.276085]
[1743771448873,5.60235,1785.0,1784.8,1.276085]
[1743771449076,11.20407,1785.1,1784.8,6.878935]
[1743771449250,5.60225,1785.0,1784.8,1.276085]
[1743771449453,5.60194,1785.1,1784.8,6.878855]
[1743771449791,12.75184,1785.2,1784.9,0.6878855]
[1743771449995,5.60224,1785.0,1784.9,0.6878855]
[1743771450159,5.60224,1785.0,1784.8,1.276085]
[1743771450579,1.5484,1785.2,1784.8,1.276085]
[1743771450785,5.60127,1785.4,1785.1,5.60191]
[1743771451026,5.60139,1785.3,1785.0,5.60221]
[1743771451196,5.6024,1785.0,1784.6,5.60338]
[1743771451366,5.6024,1785.0,1784.7,6.163418]
[1743771452372,5.60198,1785.1,1784.7,6.163418]
[1743771452373,5.60198,1785.1,1784.8,5.60276]
[1743771452759,5.60198,1785.1,1784.8,5.60274]
[1743771452994,11.20411,1785.1,1784.8,5.60274]
[1743771453298,5.60227,1785.0,1784.7,6.163498]
[1743771453475,11.20405,1785.1,1784.8,0.6163498]
[1743771453676,5.60199,1785.1,1784.8,6.2192098]
[1743771453877,11.20407,1785.1,1784.8,0.6163498]
[1743771454205,7.12903,1785.3,1784.9,5.60233]
[1743771454364,1.5276,1785.3,1785.0,11.764383]
[1743771454563,5.60105,1785.4,1785.0,11.764383]
[1743771454803,1.6081,1785.7,1785.5,5.6006]
[1743771455005,7.20772,1785.9,1785.5,5.60055]
[1743771455302,7.055,1786.0,1785.5,5.60055]
[1743771455303,5.59921,1786.0,1785.5,5.65660343]
[1743771455507,11.1985,1786.0,1785.6,7.72068034]
[1743771455706,11.19848,1786.0,1785.6,7.72068034]
[1743771455865,5.59921,1786.0,1785.6,7.72068034]
[1743771456065,5.59976,1785.8,1785.6,0.56566034]
[1743771456288,8.648,1786.1,1785.6,6.16585034]
[1743771456503,5.59951,1785.9,1785.6,6.16585034]
[1743771457007,5.59974,1785.8,1785.4,12.75645]
[1743771457302,5.60005,1785.7,1785.4,7.15561]
[1743771457808,5.59974,1785.8,1785.4,11.20163]
[1743771458106,5.59974,1785.8,1785.5,5.60064]
[1743771458483,5.59948,1785.9,1785.5,5.60064]
[1743771458678,5.59976,1785.8,1785.6,0.560064]
[1743771459000,5.59976,1785.8,1785.4,11.2018]
[1743771459210,5.59976,1785.8,1785.5,5.6006]
[1743771460003,8.59924,1786.0,1785.6,5.60019]
[1743771460167,14.2429,1786.1,1785.6,1.5365]
[1743771460368,19.84192,1786.1,1785.7,5.5999]
[1743771460692,3.0,1785.9,1785.4,5.60093]
[1743771460895,7.26138,1785.8,1785.1,5.60181]
[1743771461080,5.60082,1785.5,1785.2,5.60157]
[1743771461408,5.60082,1785.5,1785.2,5.6015]
[1743771461618,5.59908,1786.1,1785.7,1.5548]
[1743771461809,5.59849,1786.2,1785.8,5.59971]
[1743771461971,7.09999,1786.3,1785.9,5.59929]
[1743771462167,5.59858,1786.2,1785.9,5.59938]
[1743771462393,7.09999,1786.3,1785.9,11.19858]
[1743771462394,12.69845,1786.3,1785.9,11.19858]
[1743771462629,12.69835,1786.3,1785.9,5.59926]
[1743771462797,5.59849,1786.2,1785.9,5.59926]
[1743771463128,5.59849,1786.2,1785.8,5.59968]
[1743771463129,5.59849,1786.2,1785.8,11.19932]
[1743771463337,1.5017,1786.3,1786.0,5.59904]
[1743771463513,1.5017,1786.3,1786.1,5.59869]
[1743771463702,5.59813,1786.4,1786.1,5.59869]
[1743771463907,5.59754,1786.5,1786.1,11.19725]
[1743771464127,11.19525,1786.5,1786.1,5.59862]
[1743771464625,5.59797,1786.4,1786.0,7.13396]
[1743771464926,5.59854,1786.2,1785.9,5.59936]
[1743771465290,7.12357,1786.3,1785.9,11.19861]
[1743771465693,1.5254,1786.3,1785.8,8.45132485]
[1743771465888,5.59858,1786.2,1785.8,12.51591485]
[1743771466088,5.59858,1786.2,1785.9,5.59941]
[1743771466435,7.12362,1786.3,1785.9,5.59927]
[1743771466594,8.540682,1786.3,1785.9,5.59927]
[1743771466794,5.59921,1786.0,1785.6,7.15496]
[1743771467128,14.1971,1786.2,1785.8,5.59973]
[1743771467425,11.19716,1786.2,1785.8,5.59973]
[1743771467627,5.59883,1786.1,1785.7,11.1999]
[1743771467928,5.59923,1786.0,1785.7,6.87539]
[1743771468135,5.59923,1786.0,1785.6,5.60021]
[1743771468290,1.6481,1785.9,1785.6,5.60019]
[1743771468691,7.24762,1785.9,1785.6,5.60019]
[1743771468920,7.24762,1785.9,1785.5,11.20119]
[1743771469119,11.19792,1786.1,1785.7,11.1997]
[1743771469395,7.14955,1786.1,1785.7,11.19965]
[1743771469599,12.74854,1786.1,1785.7,5.59978]
[1743771469814,5.59911,1786.0,1785.7,5.59978]
[1743771470251,12.74858,1786.1,1785.7,5.59978]
[1743771470449,1.5506,1786.1,1785.8,5.59964]
[1743771470649,5.59848,1786.2,1785.9,5.59936]
[1743771470944,19.86443,1786.3,1785.9,5.59931]
[1743771471145,5.59869,1786.2,1785.8,5.59973]
[1743771471320,5.59869,1786.2,1785.9,5.59939]
[1743771471648,5.59869,1786.2,1785.8,6.9311778]
[1743771471649,11.19747,1786.2,1785.8,12.5307478]
[1743771471940,8.6678,1786.3,1785.9,5.59919]
[1743771471941,14.26608,1786.3,1785.9,5.59919]
[1743771472131,5.59848,1786.2,1785.9,5.59919]
[1743771472325,19.86445,1786.3,1785.9,5.59919]
[1743771472535,19.86445,1786.3,1786.0,5.59897]
[1743771472536,7.22309,1786.3,1786.0,5.59897]
[1743771472745,12.82155,1786.3,1785.9,6.29244378]
[1743771472905,12.82145,1786.3,1786.0,5.59899]
[1743771473105,1.6248,1786.3,1786.0,5.59899]
[1743771473338,7.22311,1786.3,1786.0,5.59899]
[1743771473570,5.59906,1786.1,1785.7,1.5548]
[1743771473749,11.19804,1786.1,1785.7,5.59993]
[1743771474113,11.19804,1786.1,1785.7,11.19986]
[1743771474419,5.59855,1786.2,1785.8,5.59964]
[1743771474820,5.59855,1786.2,1785.9,5.59939]
[1743771475020,11.19723,1786.2,1785.8,5.59959]
[1743771475258,11.19723,1786.2,1785.5,7.11125]
[1743771475259,1.282203,1786.2,1785.6,5.60033]
[1743771475556,1.282203,1786.2,1785.0,5.60208]
[1743771475557,1.5939,1785.7,1785.1,1.5106]
[1743771475723,7.19533,1785.3,1784.8,1.5106]
[1743771475928,12.79686,1785.3,1784.9,5.60235]
[1743771476125,5.60167,1785.2,1784.8,7.11346]
[1743771476334,11.20353,1785.2,1784.8,7.11346]
[1743771476531,5.60167,1785.2,1784.9,5.60252]
[1743771476852,12.79689,1785.3,1784.9,5.60247]
[1743771477062,5.60239,1785.0,1784.6,5.60344]
[1743771477239,5.60266,1784.9,1784.5,7.15846]
[1743771477447,1.5939,1785.3,1784.8,5.60259]
[1743771477622,5.60238,1785.0,1784.6,5.60318]
[1743771477955,11.20482,1785.0,1784.6,5.60318]
[1743771478132,5.60172,1785.2,1784.5,1.5548]
[1743771478463,5.60206,1785.1,1784.7,5.60293]
[1743771478648,5.60206,1785.1,1784.6,5.60344]
[1743771478649,5.60235,1785.0,1784.6,5.60344]
[1743771478849,5.60235,1785.0,1784.6,6.319264]
[1743771479160,5.60235,1785.0,1784.6,6.319204]
[1743771479368,7.19524,1785.3,1784.6,0.715824]
[1743771479521,5.60203,1785.1,1784.7,5.60304]
[1743771479724,5.60236,1785.0,1784.7,5.60304]
[1743771479921,5.60236,1785.0,1784.6,5.65942933]
[1743771480148,5.60236,1785.0,1784.5,1.5548]
[1743771480149,5.60259,1784.9,1784.5,7.15859]
[1743771480350,5.60309,1784.8,1784.3,7.15913]
[1743771480538,7.20979,1784.8,1784.3,7.15913]
[1743771480733,5.60338,1784.7,1784.3,7.15913]
[1743771480948,7.20957,1784.8,1784.4,5.60405]
[1743771481252,7.20957,1784.8,1784.1,7.15683]
[1743771481253,5.60394,1784.5,1784.1,7.15683]
[1743771481447,1.6067,1784.8,1784.2,0.715683]
[1743771481651,5.60331,1784.7,1784.3,5.60432]
[1743771482042,11.20674,1784.7,1784.3,5.60432]
[1743771482368,1.5082,1785.0,1784.6,5.60343]
[1743771482543,5.60309,1784.8,1784.3,5.60416]
[1743771482739,5.60319,1784.7,1784.4,5.60406]
[1743771482929,5.60319,1784.7,1784.4,1.12642584]
[1743771483126,11.20756,1784.6,1784.2,7.15954]
[1743771483434,5.60255,1784.9,1784.4,5.60401]
[1743771483435,5.60286,1784.8,1784.4,5.60401]
[1743771483758,5.60268,1784.9,1784.5,5.60361]
[1743771484159,5.60268,1784.9,1784.6,7.15814]
[1743771484160,5.60257,1784.9,1784.6,7.15814]
[1743771484338,7.11046,1785.0,1784.6,7.15815]
[1743771484542,7.11046,1785.0,1784.6,8.434293]
[1743771484848,5.60226,1785.0,1784.7,5.60316]
[1743771485051,14.26744,1785.2,1784.8,5.60279]
[1743771485253,5.60198,1785.1,1784.7,5.60307]
[1743771485466,8.6658,1785.2,1785.0,5.60202]
[1743771485636,7.10112,1785.4,1785.0,6.162222]
[1743771485841,5.60143,1785.3,1785.0,0.560202]
[1743771486162,5.60161,1785.2,1784.9,5.60254]
[1743771486368,5.60161,1785.2,1784.9,5.60253]
[1743771486566,1.5,1785.4,1784.6,2.830993]
[1743771486733,5.60172,1785.2,1784.8,5.60286]
[1743771487068,5.60194,1785.1,1784.7,5.60317]
[1743771487266,5.60194,1785.1,1784.6,7.15828]
[1743771487449,5.60266,1784.9,1784.5,5.6038]
[1743771487766,5.60299,1784.8,1784.4,5.60398]
[1743771488062,5.60366,1784.6,1784.3,1.5548]
[1743771488358,5.60318,1784.7,1784.3,7.15912]
[1743771488765,12.63793,1784.8,1784.3,7.15912]
[1743771488966,12.63793,1784.8,1784.4,5.60401]
[1743771489174,7.13839,1784.9,1784.5,6.164071]
[1743771489667,5.60259,1784.9,1784.6,5.60343]
[1743771490041,5.60259,1784.9,1784.5,11.767731]
[1743771490342,5.60259,1784.9,1784.5,6.164061]
[1743771490749,5.60226,1785.0,1784.5,6.164061]
[1743771490975,14.25787,1785.1,1784.6,0.67243835]
[1743771491169,14.25787,1785.1,1784.3,1.5548]
[1743771491170,14.25787,1785.1,1784.4,0.55]
[1743771491328,5.60224,1785.0,1784.7,5.60315]
[1743771491524,14.25787,1785.1,1784.8,5.60281]
[1743771491525,7.22387,1785.1,1784.8,5.60281]
[1743771492032,7.22387,1785.1,1784.7,7.15795]
[1743771492368,7.22387,1785.1,1784.8,5.60271]
[1743771492369,1.6219,1785.1,1784.8,5.60271]
[1743771492571,5.60161,1785.2,1784.8,6.88437764]
[1743771492774,5.60202,1785.1,1784.8,6.88437764]
[1743771493257,5.60193,1785.1,1784.8,6.88437764]
[1743771493459,5.60193,1785.1,1784.8,1.28166764]
[1743771493662,5.60237,1785.0,1784.7,1.5548]
[1743771493864,5.60237,1785.0,1784.6,5.60344]
[1743771494064,5.60237,1785.0,1784.3,2.1048]
[1743771494065,5.60367,1784.6,1784.3,2.1048]
[1743771494260,1.6092,1784.3,1784.1,0.05]
[1743771494638,5.60475,1784.2,1784.1,0.05]
[1743771495035,9.886617,1784.2,1784.1,0.05]
[1743771495274,8.60475,1784.2,1784.1,0.05]
[1743771496964,1.6092,1784.3,1784.1,0.05]
[1743771497169,5.60475,1784.2,1784.1,0.05]
[1743771497345,1.6092,1784.3,1784.1,0.05]
[1743771497682,12.83987,1784.5,1784.1,6.220436]
[1743771497867,7.23582,1784.5,1784.1,11.825316]
[1743771498068,12.83987,1784.5,1784.1,6.220396]
[1743771498378,1.632,1784.5,1784.1,0.615516]
[1743771498591,5.60353,1784.6,1784.2,5.66067451]
[1743771498743,7.03,1784.8,1784.5,5.60372]
[1743771499082,0.42555454,1784.9,1784.6,5.6034]
[1743771499253,0.42555454,1784.9,1784.8,5.60286]
[1743771499452,5.60244,1785.0,1784.7,1.5548]
[1743771499656,5.60257,1784.9,1784.5,5.60379]
[1743771499958,5.60287,1784.8,1784.5,1.276267]
[1743771500583,11.20593,1784.8,1784.5,1.276267]
[1743771500756,5.60287,1784.8,1784.5,1.276267]
[1743771501150,11.20537,1784.9,1784.5,6.880067]
[1743771501485,11.20481,1785.0,1784.6,5.60325]
[1743771501689,11.20481,1785.0,1784.7,0.560325]
[1743771502071,14.22465,1785.1,1784.7,6.163355]
[1743771502269,7.19565,1785.1,1784.7,11.766375]
[1743771502472,5.60098,1785.4,1784.7,11.766375]
[1743771502473,7.25062,1785.4,1785.0,5.602]
[1743771502847,5.60151,1785.3,1784.8,7.13337]
[1743771503048,5.60151,1785.3,1784.9,0.713337]
[1743771503285,5.60218,1785.1,1784.8,1.5306]
[1743771503459,5.60243,1785.0,1784.7,0.560325]
[1743771503643,5.60193,1785.1,1784.7,6.163195]
[1743771503856,5.60171,1785.2,1784.8,11.20544]
[1743771504052,7.25081,1785.4,1785.0,7.15681]
[1743771504257,5.6013,1785.3,1785.0,1.5548]
[1743771504556,11.2028,1785.3,1785.0,2.830786]
[1743771504783,5.6013,1785.3,1785.0,2.830786]
[1743771504955,11.20283,1785.3,1785.0,2.830786]
[1743771505171,5.60176,1785.2,1785.0,2.830786]
[1743771505475,5.60176,1785.2,1785.0,1.275986]
[1743771505673,5.60239,1785.0,1784.8,1.536]
[1743771505872,1.6248,1785.0,1784.7,0.560325]
[1743771506050,7.2271,1785.0,1784.7,5.60307]
[1743771506249,7.22708,1785.0,1784.6,1.5548]
[1743771506444,7.22708,1785.0,1784.6,7.15828]
[1743771506445,5.60282,1784.9,1784.6,7.15828]
[1743771506690,1.6248,1785.0,1784.7,5.65919943]
[1743771506889,5.60205,1785.1,1784.8,5.60285]
[1743771507595,11.20415,1785.1,1784.8,5.60285]
[1743771507889,5.60205,1785.1,1784.8,5.60285]
[1743771508092,5.60224,1785.0,1784.7,5.60317]
[1743771508297,1.5146,1785.2,1784.7,1.37067665]
[1743771508453,5.60182,1785.2,1784.7,5.60313]
[1743771508789,5.60177,1785.2,1784.8,5.60274]
[1743771508989,5.60202,1785.1,1784.8,5.60274]
[1743771509193,5.60227,1785.0,1784.7,5.60313]
[1743771509493,5.60224,1785.0,1784.7,5.60308]
[1743771509656,5.60224,1785.0,1784.6,7.15824]
[1743771509856,5.60256,1784.9,1784.6,8.489438]
[1743771510179,11.20465,1785.0,1784.6,8.489358]
[1743771510496,5.60237,1785.0,1784.7,5.60305]
[1743771510787,5.60237,1785.0,1784.6,2.885998]
[1743771510788,5.60193,1785.1,1784.8,5.60272]
[1743771511093,5.60161,1785.2,1784.7,0.05602408]
[1743771511311,5.60359,1784.6,1784.2,5.60461]
[1743771511511,5.60359,1784.6,1784.3,5.60438]
[1743771511669,5.6039,1784.5,1784.2,1.5115]
[1743771512309,5.60414,1784.4,1784.1,0.05]
[1743771512507,7.14961,1784.6,1784.2,5.60459]
[1743771512711,5.60318,1784.7,1784.3,11.20868]
[1743771513209,8.567,1784.8,1784.4,5.60411]
[1743771513394,14.17015,1784.8,1784.4,11.26411027]
[1743771513593,5.60256,1784.9,1784.3,1.5236]
[1743771513594,5.60256,1784.9,1784.5,5.60356]
[1743771513766,5.60293,1784.8,1784.5,6.163916]
[1743771513974,1.5923,1785.0,1784.6,0.05603036]
[1743771514165,5.60205,1785.1,1784.6,0.05603036]
[1743771514166,12.62302,1785.1,1784.8,5.60276]
[1743771514413,18.22516,1785.1,1784.7,7.15226]
[1743771514580,12.62302,1785.1,1784.7,7.15211]
[1743771514930,5.60142,1785.3,1785.0,5.60211]
[1743771515095,5.60142,1785.3,1784.9,5.60255]
[1743771515607,5.60176,1785.2,1784.9,5.60255]
[1743771515815,5.60176,1785.2,1784.8,11.20551]
[1743771515970,5.60176,1785.2,1784.9,5.60253]
[1743771516188,1.5366,1786.1,1785.0,0.55]
[1743771516518,1.5366,1786.1,1785.8,5.5996]
[1743771516717,7.13553,1786.1,1785.7,5.59989]
[1743771517346,11.19864,1786.0,1785.6,5.6002]
[1743771517507,5.59932,1786.0,1785.6,6.16022]
[1743771517703,5.59932,1786.0,1785.7,5.5999]
[1743771518335,5.59996,1785.8,1785.4,5.60085]
[1743771518510,5.60004,1785.7,1785.3,12.75719]
[1743771518715,5.60004,1785.7,1785.3,14.032799]
[1743771518921,11.20027,1785.7,1785.3,8.431659]
[1743771519221,5.6004,1785.6,1785.3,7.15594]
[1743771519419,5.60004,1785.7,1785.3,12.75709]
[1743771519620,5.60004,1785.7,1785.4,5.60098]
[1743771519841,12.7601,1785.8,1785.4,5.60098]
[1743771520043,5.60013,1785.7,1785.4,5.60098]
[1743771520344,7.16017,1785.8,1785.4,5.60098]
[1743771520345,7.16017,1785.8,1785.5,5.60054]
[1743771520655,1.5604,1785.8,1785.5,11.25710483]
[1743771520821,5.59945,1785.9,1785.5,12.32681048]
[1743771521004,5.59881,1786.1,1785.7,5.59977]
[1743771521207,7.22591,1786.2,1785.9,5.59941]
[1743771521409,1.6274,1786.2,1786.0,5.59897]
[1743771521605,12.61323,1786.3,1786.0,5.59897]
[1743771522041,10.20575,1786.4,1785.8,5.59962]
[1743771522042,5.59866,1786.2,1785.8,5.59962]
[1743771522242,5.59866,1786.2,1785.8,6.719584]
[1743771522460,5.5989,1786.1,1785.7,5.60002]
[1743771522636,5.59956,1785.9,1785.6,7.1551]
[1743771522839,5.59916,1786.0,1785.6,12.75535]
[1743771523034,12.71117,1786.1,1785.7,5.5998]
[1743771523223,5.59918,1786.0,1785.6,7.15514]
[1743771523427,5.59945,1785.9,1785.6,8.54329005]
[1743771523626,5.59918,1786.0,1785.6,14.19949774]
[1743771523832,5.59918,1786.0,1785.7,5.59988]
[1743771524032,5.59953,1785.9,1785.6,8.54316005]
[1743771524653,5.59953,1785.9,1785.6,5.60021]
[1743771524968,11.19921,1785.9,1785.5,11.20115]
[1743771525147,5.5992,1786.0,1785.6,5.60014]
[1743771525342,5.60004,1785.8,1785.6,0.05599767]
[1743771525653,11.20109,1785.6,1785.2,12.75783]
[1743771525816,11.20107,1785.6,1785.2,12.75783]
[1743771526238,2.171004,1785.8,1785.2,7.15635]
[1743771526442,5.60019,1785.7,1785.4,5.60086]
[1743771526653,11.20046,1785.7,1785.3,5.60108]
[1743771526862,11.20046,1785.7,1785.3,11.20222]
[1743771527066,5.60019,1785.7,1785.4,5.60087]
[1743771527482,12.81074,1785.8,1785.4,5.60085]
[1743771527639,7.21079,1785.8,1785.5,5.60061]
[1743771527838,1.611,1785.8,1785.4,6.160935]
[1743771528043,5.6003,1785.7,1785.4,0.560085]
[1743771528536,1.611,1785.8,1785.5,5.60043]
[1743771528741,12.78787,1786.1,1785.6,0.05600187]
[1743771528976,5.59925,1786.0,1785.6,5.65630187]
[1743771529175,5.59766,1786.5,1785.5,2.1583515]
[1743771529176,0.05,1786.9,1785.9,3.6998518]
[1743771529379,0.05,1786.9,1786.3,1.5006]
[1743771529380,5.6465,1786.9,1786.3,1.5006]
[1743771529538,5.6465,1786.9,1786.3,2.58049018]
[1743771529539,0.05,1786.9,1786.3,2.58049018]
[1743771529737,0.05,1786.9,1786.6,5.59709]
[1743771529964,5.64636,1786.9,1786.6,5.59709]
[1743771530281,0.05,1786.9,1786.6,5.59716]
[1743771530465,0.05,1786.9,1786.5,5.59744]
[1743771530670,5.6464,1786.9,1786.5,5.65338939]